Workbook

Sheet MaxBen cp polino2 (hidden)
A1: MAXIMIZACIÓN DEL BENEFICIO
A2: CORTO PLAZO
B3: (Función polinomial de segundo grado)
B4: Función de producción | D4: Isobeneficio
B5: y | C5: ='Oculto MaxBen'!CI31 -> 26.6 | D5: y | E5: =C5 -> 26.6
B6: b(q1)2 | C6: -0.150 | D6: p | E6: ='Oculto MaxBen'!CK31 -> 1,203.3
B7: c(q1) | C7: 4.000 | D7: p | E7: 50.0
B8: d | C8: 0.000 | D8: w1 | E8: 10.0
B9: q1 | C9: ='Oculto MaxBen'!CI36 -> 12.7 | D9: q1 | E9: =C9 -> 12.7
B16: Parámetros del isobenefico
B17: y | C17: p / p | D17: (w1 * q1)/p
B18: =SUM(C18:D18) -> 26.6 | C18: =E6/E7 -> 24.1 | D18: =(E8/E7)*E9 -> 2.5
C19: p | D19: w1 * q1 | H19: =E5*E7 -> 1330 | I19: =C9*E8 -> 126.6666667
C20: =E6 -> 1,203.3 | D20: =C9*E8 -> 126.7
B22: Títulos
B23: Resultados
B24: Insertar datos
B25: Cantidad de equilibrio
B27: Títulos

Sheet Inicio MBcp
A24: Descargue la versión Kindle
K32: Miguel Cervantes Jiménez

Sheet MaxBen cp (hidden)
A1: MAXIMIZACIÓN DEL BENEFICIO
A2: CORTO PLAZO
B4: Función de producción | D4: Isobeneficio
B5: y | C5: ='Oculto MaxBen'!C27 -> 714.1 | D5: p | E5: ='Oculto MaxBen'!E27 -> 3,568.7
B6: A | C6: 8.0 | D6: p | E6: 20.0
B7: q1 | C7: ='Oculto MaxBen'!C29 -> 238.0 | D7: w1 | E7: 24.0
B8: a | C8: 0.4 | D8: q1 | E8: ='Oculto MaxBen'!E31 -> 238.0
B9: q2 | C9: 100.0 | D9: w2 | E9: 50.0
B10: b | C10: 0.5 | D10: q2 | E10: =C9 -> 100.0
C11: Inserte los datos correspondientes
B15: Parámetros del isobenefico
B16: y | C16: p / p | D16: (w2 * q2)/p | E16: (w1 * q1)/p
B17: =SUM(C17:E17) -> 714.1 | C17: =E5/E6 -> 178.4 | D17: =(E9/E6)*C9 -> 250.0 | E17: =(E7/E6)*E8 -> 285.6
C18: p | D18: w2 * q2 | E18: w1 * q1
C19: =E5 -> 3,568.7 | D19: =E9*C9 -> 5,000.0 | E19: =C7*E7 -> 5,712.5
B21: Títulos
B22: Resultados
B23: Insertar datos
B24: Canttidad de equilibrio
B26: Títulos

Sheet MaxBen cp Dq1 (hidden)
A1: MAXIMIZACIÒN DEL BENEFICIO
A2: CORTO PLAZO
A4: Cambio del precio del factor variable
B6: Función de Producción | D6: Isobeneficio Inicial | F6: Isobeneficio Final
B7: y | C7: ='Oculto MaxBen'!N27 -> 11.0 | D7: p | E7: ='Oculto MaxBen'!P27 -> 9.0 | F7: p | G7: ='Oculto MaxBen'!AA27 -> 9.0
B8: A | C8: 2.0 | D8: p | E8: 5.0 | F8: p | G8: =E8 -> 5.0
B9: q1 | C9: ='Oculto MaxBen'!N29 -> 11.0 | D9: w1 | E9: 2.0 | F9: w1 | G9: =E9 -> 2.0
B10: a | C10: 0.4 | D10: q1 | E10: ='Oculto MaxBen'!P31 -> 11.0 | F10: q1 | G10: ='Oculto MaxBen'!AA31 -> 11.0
B11: q2 | C11: 12.0 | D11: w2 | E11: 2.0 | F11: w2 | G11: =E11 -> 2.0
B12: b | C12: 0.3 | D12: q2 | E12: ='Oculto MaxBen'!N31 -> 12.0 | F12: q2 | G12: =C11 -> 12.0
C13: Inserte los datos correspondientes | F13: y | G13: ='Oculto MaxBen'!Y27 -> 11.0
B15: Parámetros del Isobeneficio 1 (inicial)
B16: y | C16: p / P | D16: (w2 * q2)/p | F16: (w1 * q1)/p
B17: =SUM(C17:F17) -> 11 | C17: =E7/E8 -> 1.8 | D17: =(E11/E8)*C11 -> 4.8 | F17: =(E9/E8)*E10 -> 4.4
B19: Parámetros del Isobeneficio 2 (final)
B20: y | C20: p / P | D20: (w2 * q2)/p | F20: (w1' * q1)/p
B21: =SUM(C21:F21) -> 11 | C21: =G7/G8 -> 1.8 | D21: =G11/G8*G12 -> 4.8 | F21: =G9/G8*G10 -> 4.4
B24: Títulos
B25: Resultados
B26: Insertar Datos
B27: Insertar datos
B28: Equilibrio

Sheet Demanda Factor Variable (hidden)
A1: MAXIMIZACIÒN DEL BENEFICIO
A2: CORTO PLAZO
A3: Demanda del factor variable
B5: Función de producción | D5: Isobeneficio inicial | F5: Isobeneficio final
B6: y | C6: ='Oculto MaxBen'!AI27 -> 11.0 | D6: p | E6: ='Oculto MaxBen'!AK27 -> 9.0 | F6: p | G6: ='Oculto MaxBen'!AV27 -> 9.0
B7: A | C7: 2.0 | D7: p | E7: 5.0 | F7: p | G7: =E7 -> 5.0
B8: q1 | C8: ='Oculto MaxBen'!AI29 -> 11.0 | D8: w1 | E8: 2.0 | F8: w1 | G8: =E8 -> 2.0
B9: a | C9: 0.4 | D9: x1 | E9: ='Oculto MaxBen'!AK31 -> 11.0 | F9: q1 | G9: ='Oculto MaxBen'!AV31 -> 11.0
B10: q2 | C10: 12.0 | D10: w2 | E10: 2.0 | F10: w2 | G10: =E10 -> 2.0
B11: b | C11: 0.3 | D11: q2 | E11: ='Oculto MaxBen'!AK33 -> 12.0 | F11: q2 | G11: =C10 -> 12.0
C12: Insertar datos correspondientes | F12: y | G12: ='Oculto MaxBen'!AT27 -> 11.0
B14: Parámetros del isobeneficio 1 (inicial)
B15: y | C15: p / P | D15: (w2 * q2)/p | F15: (w1 * q1)/p
B16: =SUM(C16:F16) -> 11.0 | C16: =E6/E7 -> 1.8 | D16: =(E10/E7)*C10 -> 4.8 | F16: =(E8/E7)*E9 -> 4.4
B18: Parámetros del isobeneficio 2 (final)
B19: y | C19: p / P | D19: (w2 * q2)/p | F19: (w1' * q1)/p
B20: =SUM(C20:F20) -> 11 | C20: =G6/G7 -> 1.8 | D20: =G10/G7*G11 -> 4.8 | F20: =G8/G7*G9 -> 4.4
C22: Demanda factor variable | F22: Inicial | G22: Final
C23: w1 | F23: =E8 -> 2.0 | G23: =G8 -> 2.0
C24: q1 | F24: =E9 -> 11 | G24: =G9 -> 11
B26: Títulos
B27: Resultados
B28: Insertar Datos
B29: Insertar datos
B30: Valores de equilibrio

Sheet Isobeneficio (hidden)
A1: ISOBENEFICIO
C3: Isobeneficio
D4: Caso 1 | E4: Caso 2
C5: p | D5: 400.0 | E5: =D5 -> 400.0
C6: y | D6: ='Oculto MaxBen'!BG27 -> 61.3 | E6: ='Oculto MaxBen'!BH27 -> 61.3
C7: p | D7: 12.0 | E7: =D7 -> 12.0
C8: w1 | D8: 6.0 | E8: =D8 -> 6.0
C9: q1 | D9: 6.0 | E9: =D9 -> 6.0
C10: w2 | D10: 5.0 | E10: =D10 -> 5.0
C11: q2 | D11: 60.0 | E11: =D11 -> 60.0
C12: Inserte los datos correspondientes
B18: Parámetros del isobenefico 1
B19: y | C19: p / p | D19: (w2 * q2)/p | E19: (w1 / p) * q1
B20: ='Oculto MaxBen'!BD36 -> 61.3 | C20: ='Oculto MaxBen'!BE36 -> 33.3 | D20: ='Oculto MaxBen'!BF36 -> 25.0 | E20: ='Oculto MaxBen'!BG36 -> 3.0
B21: p | C21: py | D21: w2 * q2 | E21: w1 * q1
B22: ='Oculto MaxBen'!BD38 -> 400.0 | C22: ='Oculto MaxBen'!BE38 -> 736.0 | D22: ='Oculto MaxBen'!BF38 -> 300.0 | E22: ='Oculto MaxBen'!BG38 -> 36.0
B25: Títulos
B26: Resultados
B27: Insertar datos
B28: Cantidad de equilibrio

Sheet Oculto MaxBen (hidden)
A1: Maximización del Beneficio Sistema Bàsico | L1: Maximización del Beneficio Sistema Ampliado Original | W1: Maximización del Beneficio Sistema Ampliado Modificado | AG1: Maximización del Beneficio Sistema Ampliado Demanda del Factor Variable | AR1: Maximización del Beneficio Sistema Ampliado Modificado | BC1: Isobeneficio | BL1: Maximización del Beneficio polinimio tercer grado | BU1: PRODUCCIÓN | BY1: TOTAL | CG1: Maximización del Beneficio polinimio segundo grado | CP1: PRODUCCIÓN | CT1: TOTAL
A2: Ponderador | B2: Función de Producción | C2: x1 | D2: Producto Marginal | E2: Isobeneficio | F2: Beneficio | G2: x1 line | I2: yline | L2: Ponderador | M2: Función de Producción | N2: x1 | O2: Producto Marginal | P2: Isobeneficio Inicial | Q2: x1 line | S2: y1Line | U2: X1 GRAF | V2: PT GRAF | W2: Ponderador | X2: Función de Producción | Y2: x1 | Z2: Producto Marginal | AA2: Isobeneficio Final | AB2: x2 line | AD2: y2Line | AG2: Ponderador | AH2: Función de Producción | AI2: x1 | AJ2: Producto Marginal | AK2: Isobeneficio Inicial | AL2: x1 line | AN2: y1Line | AP2: X1 GRAF | AQ2: PT GRAF | AR2: Ponderador | AS2: Función de Producción | AT2: x1 | AU2: Producto Marginal | AV2: Isobeneficio Final | AW2: x2 line | AY2: y2Line | BC2: Ponderador | BD2: x1 | BE2: y1 | BF2: x1 line | BH2: yline | BJ2: y2 | BL2: Ponderador | BM2: Función de Producción | BN2: x1 | BO2: Producto Marginal | BP2: Isobeneficio | BQ2: Beneficio | BR2: Ingreso total | BS2: Costo Total | BT2: Beneficio | BU2: x1 line | BW2: yline | BY2: x1 line | CA2: yline | CB2: ING | CC2: BEN | CD2: COSTO | CG2: Ponderador | CH2: Función de Producción | CI2: x1 | CJ2: Producto Marginal | CK2: Isobeneficio | CL2: Beneficio | CM2: Ingreso total | CN2: Costo Total | CO2: Beneficio | CP2: x1 line | CR2: yline | CT2: x1 line | CV2: yline | CW2: ING | CX2: BEN | CY2: COSTO
A3: 0 | B3: =$C$28*(C3^($C$30))*($C$31^($C$32)) -> 0 | C3: =$C$29*1.6*A3 -> 0 | D3: 0 | E3: =(($E$27/$E$28)+($E$32*$E$33)/$E$28)+(($E$30/$E$28)*C3) -> 428.44 | F3: =($E$28*B3)-(($E$30*C3)+($E$32*$E$33)) -> (5,000.00) | G3: =$C$29 -> 238.02 | H3: =$C$27*A3 -> 0 | I3: =$C$29*A3 -> 0 | J3: =$C$27 -> 714.06 | L3: 0 | M3: =N$28*(N3^(N$30))*(N$31^(N$32)) -> 0 | N3: =N$29*1.6*L3 -> 0 | O3: 0 | P3: =((P$27/P$28)+(P$32*P$33)/P$28)+((P$30/P$28)*N3) -> 6.60 | Q3: =N$29 -> 11.00 | R3: =N$27*L3 -> 0 | S3: =$P$31*L3 -> 0 | T3: =$N$27 -> 11.00 | U3: =IF($P$30<$AA$30,N3,Y3) -> 0 | V3: =IF($P$30<$AA$30,M3,X3) -> 0 | W3: 0 | X3: =Y$28*(Y3^(Y$30))*(Y$31^(Y$32)) -> 0 | Y3: =Y$29*1.6*W3 -> 0 | Z3: 0 | AA3: =((AA$27/AA$28)+(AA$32*AA$33)/AA$28)+((AA$30/AA$28)*Y3) -> 6.60 | AB3: =Y$29 -> 11.00 | AC3: =Y$27*W3 -> 0 | AD3: =$AA$31*W3 -> 0 | AE3: =$Y$27 -> 11.00 | AG3: 0 | AH3: =AI$28*(AI3^(AI$30))*(AI$31^(AI$32)) -> 0 | AI3: =AI$29*1.6*AG3 -> 0 | AJ3: 0 | AK3: =((AK$27/AK$28)+(AK$32*AK$33)/AK$28)+((AK$30/AK$28)*AI3) -> 6.60 | AL3: =AI$29 -> 11.00 | AM3: =AI$27*AG3 -> 0 | AN3: =$AI$29*AG3 -> 0 | AO3: =$AK$29 -> 11.00 | AP3: =IF($AK$30<$AV$30,AI3,AT3) -> 0 | AQ3: =IF($AK$30<$AV$30,AH3,AS3) -> 0 | AR3: 0 | AS3: =AT$28*(AT3^(AT$30))*(AT$31^(AT$32)) -> 0 | AT3: =AT$29*1.6*AR3 -> 0 | AU3: 0 | AV3: =((AV$27/AV$28)+(AV$32*AV$33)/AV$28)+((AV$30/AV$28)*AT3) -> 6.60 | AW3: =AT$29 -> 11.00 | AX3: =AT$27*AR3 -> 0 | AY3: =$AT$29*AR3 -> 0 | AZ3: =$AV$29 -> 11.00 | BC3: 0 | BD3: =($BG$30*1.2)*BC3 -> 0 | BE3: =(($BG$26+($BG$32*$BG$31))/$BG$28)+(($BG$29/$BG$28)*BD3) -> 58.33 | BF3: =$BG$30 -> 6.00 | BG3: =MAX($BG$27,$BH$27)*BC3 -> 0 | BH3: =$BG$30*BC3 -> 0 | BI3: =$BG$27 -> 61.33 | BJ3: =(($BH$26+($BH$32*$BH$31))/$BH$28)+(($BH$29/$BH$28)*BD3) -> 58.33 | BK3: =$BH$27 -> 61.33 | BL3: 0 | BM3: =(($BN$32*BN3^3)+($BN$33*BN3^2*$BN$37)+($BN$34*BN3)+$BN$35) -> 0 | BN3: =($BN$36)*BL3 -> 0 | BO3: =((3*$BN$32*BN3^2)+(2*$BN$33*BN3*$BN$37)+($BN$34)) -> 0 | BP3: =(($BP$31/$BP$32)+($BP$36*$BP$37/$BP$32))+(($BP$34/$BP$32)*BN3) -> 1,050.28 | BQ3: =(BM3*$BP$32)-((BN3*$BP$34)+($BP$37*$BP$36)) -> (100.00) | BR3: =BM3*$BP$32 -> 0 | BS3: =($BN$37*$BP$36)+(BN3*$BP$34) -> 100.00 | BT3: =BR3-BS3 -> (100.00) | BU3: =$BN$36 -> 70.55 | BV3: =$BN$31*BL3 -> 0 | BW3: =$BN$36*BL3 -> 0 | BX3: =BN31 -> 2,461.29 | BY3: =$BN$36 -> 70.55 | BZ3: =$BR$23*BL3 -> 0 | CA3: =$BN$36*BL3 -> 0 | CB3: =BP32*$BN$31 -> 12,306.43 | CC3: =$BP$31 -> 5,151.38 | CD3: =$BS$23 -> 7,155.05 | CG3: 0 | CH3: =(($CI$33*CI3^2)+($CI$34*CI3)+$CI$35) -> 0 | CI3: =$CI$36*CG3 -> 0 | CJ3: =((2*$CI$33*CI3)+($CI$34)) -> 4.00 | CK3: =($CK$31+$CK$34*CI3)/$CK$32 -> 24.07 | CL3: =$CK$32*CH3-$CK$34*CI3 -> 0 | CM3: =$CK$32*CH3 -> 0 | CN3: =$CK$34*CI3 -> 0 | CO3: =CM3-CN3 -> 0 | CP3: =CI36 -> 12.67 | CQ3: =$CI$31*CG3 -> 0 | CR3: =$CI$36*CG3 -> 0 | CS3: =CI31 -> 26.60 | CT3: =CI36 -> 12.67 | CU3: =$CM$23*CG3 -> 0 | CV3: =$CI$36*CG3 -> 0 | CW3: =CK32*CI31 -> 1,330.00 | CX3: =CK31 -> 1,203.33 | CY3: =CN23 -> 126.67
A4: 0.05 | B4: =$C$28*(C4^($C$30))*($C$31^($C$32)) -> 260.00 | C4: =$C$29*1.6*A4 -> 19.04 | D4: =$C$30*$C$28*(($C$31/C4)^($C$32)) -> 7.33 | E4: 451.29 | F4: =($E$28*B4)-(($E$30*C4)+($E$32*$E$33)) -> (257.02) | G4: =$C$29 -> 238.02 | H4: =$C$27*A4 -> 35.70 | I4: =$C$29*A4 -> 11.90 | J4: =$C$27 -> 714.06 | L4: 0.05 | M4: =N$28*(N4^(N$30))*(N$31^(N$32)) -> 4.00 | N4: =N$29*1.6*L4 -> 0.88 | O4: =N$30*N$28*((N$31/N4)^(N$32)) -> 1.75 | P4: =((P$27/P$28)+(P$32*P$33)/P$28)+((P$30/P$28)*N4) -> 6.95 | Q4: =N$29 -> 11.00 | R4: =N$27*L4 -> 0.55 | S4: =$P$31*L4 -> 0.55 | T4: =$N$27 -> 11.00 | U4: =IF($P$30<$AA$30,N4,Y4) -> 0.88 | V4: =IF($P$30<$AA$30,M4,X4) -> 4.00 | W4: 0.05 | X4: =Y$28*(Y4^(Y$30))*(Y$31^(Y$32)) -> 4.00 | Y4: =Y$29*1.6*W4 -> 0.88 | Z4: =Y$30*Y$28*((Y$31/Y4)^(Y$32)) -> 1.75 | AA4: =((AA$27/AA$28)+(AA$32*AA$33)/AA$28)+((AA$30/AA$28)*Y4) -> 6.95 | AB4: =Y$29 -> 11.00 | AC4: =Y$27*W4 -> 0.55 | AD4: =$AA$31*W4 -> 0.55 | AE4: =$Y$27 -> 11.00 | AG4: 0.05 | AH4: =AI$28*(AI4^(AI$30))*(AI$31^(AI$32)) -> 4.00 | AI4: =AI$29*1.6*AG4 -> 0.88 | AJ4: =AI$30*AI$28*((AI$31/AI4)^(AI$32)) -> 1.75 | AK4: =((AK$27/AK$28)+(AK$32*AK$33)/AK$28)+((AK$30/AK$28)*AI4) -> 6.95 | AL4: =AI$29 -> 11.00 | AM4: =AI$27*AG4 -> 0.55 | AN4: =$AI$29*AG4 -> 0.55 | AO4: =$AK$29 -> 11.00 | AP4: =IF($AK$30<$AV$30,AI4,AT4) -> 0.88 | AQ4: =IF($AK$30<$AV$30,AH4,AS4) -> 4.00 | AR4: 0.05 | AS4: =AT$28*(AT4^(AT$30))*(AT$31^(AT$32)) -> 4.00 | AT4: =AT$29*1.6*AR4 -> 0.88 | AU4: =AT$30*AT$28*((AT$31/AT4)^(AT$32)) -> 1.75 | AV4: =((AV$27/AV$28)+(AV$32*AV$33)/AV$28)+((AV$30/AV$28)*AT4) -> 6.95 | AW4: =AT$29 -> 11.00 | AX4: =AT$27*AR4 -> 0.55 | AY4: =$AT$29*AR4 -> 0.55 | AZ4: =$AV$29 -> 11.00 | BC4: 0.05 | BD4: =($BG$30*1.2)*BC4 -> 0.36 | BE4: 58.51 | BF4: =$BG$30 -> 6.00 | BG4: =MAX($BG$27,$BH$27)*BC4 -> 3.07 | BH4: =$BG$30*BC4 -> 0.30 | BI4: 61.33 | BJ4: =(($BH$26+($BH$32*$BH$31))/$BH$28)+(($BH$29/$BH$28)*BD4) -> 58.51 | BK4: =$BH$27 -> 61.33 | BL4: 0.05 | BM4: 14.49 | BN4: =($BN$36)*BL4 -> 3.53 | BO4: 8.09 | BP4: =(($BP$31/$BP$32)+($BP$36*$BP$37/$BP$32))+(($BP$34/$BP$32)*BN4) -> 1,120.83 | BQ4: (380.29) | BR4: =BM4*$BP$32 -> 72.47 | BS4: 452.75 | BT4: =BR4-BS4 -> (380.29) | BU4: =BU3 -> 70.55 | BV4: =$BN$31*BL4 -> 123.06 | BW4: =$BN$36*BL4 -> 3.53 | BX4: =BX3 -> 2,461.29 | BY4: =BY3 -> 70.55 | BZ4: =$BR$23*BL4 -> 615.32 | CA4: =$BN$36*BL4 -> 3.53 | CB4: =CB3 -> 12,306.43 | CC4: =CC3 -> 5,151.38 | CD4: 7,155.05 | CG4: 0.05 | CH4: =(($CI$33*CI4^2)+($CI$34*CI4)+$CI$35) -> 2.47 | CI4: =$CI$36*CG4 -> 0.63 | CJ4: =((2*$CI$33*CI4)+($CI$34)) -> 3.81 | CK4: =($CK$31+$CK$34*CI4)/$CK$32 -> 24.19 | CL4: =$CK$32*CH4-$CK$34*CI4 -> 117.33 | CM4: =$CK$32*CH4 -> 123.66 | CN4: =$CK$34*CI4 -> 6.33 | CO4: =CM4-CN4 -> 117.33 | CP4: =CP3 -> 12.67 | CQ4: =$CI$31*CG4 -> 1.33 | CR4: =$CI$36*CG4 -> 0.63 | CS4: =CS3 -> 26.60 | CT4: =CT3 -> 12.67 | CU4: =$CM$23*CG4 -> 66.50 | CV4: =$CI$36*CG4 -> 0.63 | CW4: =CW3 -> 1,330.00 | CX4: =CX3 -> 1,203.33 | CY4: 126.67
A5: 0.10 | B5: 343.07 | C5: 38.08 | D5: =$C$30*$C$28*(($C$31/C5)^($C$32)) -> 5.19 | E5: 474.14 | F5: 947.42 | G5: 238.02 | H5: 71.41 | I5: 23.80 | J5: 714.06 | L5: 0.10 | M5: 5.28 | N5: 1.76 | O5: =N$30*N$28*((N$31/N5)^(N$32)) -> 1.42 | P5: 7.30 | Q5: 11.00 | R5: 1.10 | S5: 1.10 | T5: 11.00 | U5: 1.76 | V5: =IF($P$30<$AA$30,M5,X5) -> 5.28 | W5: 0.10 | X5: 5.28 | Y5: 1.76 | Z5: =Y$30*Y$28*((Y$31/Y5)^(Y$32)) -> 1.42 | AA5: 7.30 | AB5: 11.00 | AC5: 1.10 | AD5: 1.10 | AE5: 11.00 | AG5: 0.10 | AH5: 5.28 | AI5: 1.76 | AJ5: =AI$30*AI$28*((AI$31/AI5)^(AI$32)) -> 1.42 | AK5: 7.30 | AL5: 11.00 | AM5: 1.10 | AN5: 1.10 | AO5: 11.00 | AP5: =IF($AK$30<$AV$30,AI5,AT5) -> 1.76 | AQ5: 5.28 | AR5: 0.10 | AS5: 5.28 | AT5: 1.76 | AU5: =AT$30*AT$28*((AT$31/AT5)^(AT$32)) -> 1.42 | AV5: 7.30 | AW5: 11.00 | AX5: 1.10 | AY5: 1.10 | AZ5: 11.00 | BC5: 0.10 | BD5: 0.72 | BE5: 58.69 | BF5: 6.00 | BG5: 6.13 | BH5: 0.60 | BI5: 61.33 | BJ5: 58.69 | BK5: 61.33 | BL5: 0.10 | BM5: 56.22 | BN5: 7.06 | BO5: 15.44 | BP5: 1,191.38 | BQ5: (524.42) | BR5: 281.08 | BS5: 805.51 | BT5: (524.42) | BU5: =BU4 -> 70.55 | BV5: 246.13 | BW5: 7.06 | BX5: =BX4 -> 2,461.29 | BY5: =BY4 -> 70.55 | BZ5: 1,230.64 | CA5: 7.06 | CB5: =CB4 -> 12,306.43 | CC5: 5,151.38 | CD5: 7,155.05 | CG5: 0.10 | CH5: 4.83 | CI5: 1.27 | CJ5: 3.62 | CK5: 24.32 | CL5: 228.63 | CM5: 241.30 | CN5: 12.67 | CO5: 228.63 | CP5: =CP4 -> 12.67 | CQ5: 2.66 | CR5: 1.27 | CS5: =CS4 -> 26.60 | CT5: 12.67 | CU5: 133.00 | CV5: 1.27 | CW5: =CW4 -> 1,330.00 | CX5: 1,203.33 | CY5: 126.67
A6: 0.15 | B6: 403.48 | C6: 57.12 | D6: 4.23 | E6: 496.99 | F6: 1,698.57 | G6: 238.02 | H6: 107.11 | I6: 35.70 | J6: 714.06 | L6: 0.15 | M6: 6.21 | N6: 2.64 | O6: 1.26 | P6: 7.65 | Q6: 11.00 | R6: 1.65 | S6: 1.65 | T6: 11.00 | U6: 2.64 | V6: 6.21 | W6: 0.15 | X6: 6.21 | Y6: 2.64 | Z6: 1.26 | AA6: 7.65 | AB6: 11.00 | AC6: 1.65 | AD6: 1.65 | AE6: 11.00 | AG6: 0.15 | AH6: 6.21 | AI6: 2.64 | AJ6: 1.26 | AK6: 7.65 | AL6: 11.00 | AM6: 1.65 | AN6: 1.65 | AO6: 11.00 | AP6: 2.64 | AQ6: 6.21 | AR6: 0.15 | AS6: 6.21 | AT6: 2.64 | AU6: 1.26 | AV6: 7.65 | AW6: 11.00 | AX6: 1.65 | AY6: 1.65 | AZ6: 11.00 | BC6: 0.15 | BD6: 1.08 | BE6: 58.87 | BF6: 6.00 | BG6: 9.20 | BH6: 0.90 | BI6: 61.33 | BJ6: 58.87 | BK6: 61.33 | BL6: 0.15 | BM6: 122.54 | BN6: 10.58 | BO6: 22.04 | BP6: 1,261.93 | BQ6: (545.57) | BR6: 612.69 | BS6: 1,158.26 | BT6: (545.57) | BU6: 70.55 | BV6: 369.19 | BW6: 10.58 | BX6: 2,461.29 | BY6: 70.55 | BZ6: 1,845.96 | CA6: 10.58 | CB6: 12,306.43 | CC6: 5,151.38 | CD6: 7,155.05 | CG6: 0.15 | CH6: 7.06 | CI6: 1.90 | CJ6: 3.43 | CK6: 24.45 | CL6: 333.93 | CM6: 352.93 | CN6: 19.00 | CO6: 333.93 | CP6: 12.67 | CQ6: 3.99 | CR6: 1.90 | CS6: 26.60 | CT6: 12.67 | CU6: 199.50 | CV6: 1.90 | CW6: 1,330.00 | CX6: 1,203.33 | CY6: 126.67
A7: 0.20 | B7: 452.68 | C7: 76.17 | D7: 3.67 | E7: 519.84 | F7: 2,225.70 | G7: 238.02 | H7: 142.81 | I7: 47.60 | J7: 714.06 | L7: 0.20 | M7: 6.97 | N7: 3.52 | O7: 1.16 | P7: 8.01 | Q7: 11.00 | R7: 2.20 | S7: 2.20 | T7: 11.00 | U7: 3.52 | V7: 6.97 | W7: 0.20 | X7: 6.97 | Y7: 3.52 | Z7: 1.16 | AA7: 8.01 | AB7: 11.00 | AC7: 2.20 | AD7: 2.20 | AE7: 11.00 | AG7: 0.20 | AH7: 6.97 | AI7: 3.52 | AJ7: 1.16 | AK7: 8.01 | AL7: 11.00 | AM7: 2.20 | AN7: 2.20 | AO7: 11.00 | AP7: 3.52 | AQ7: 6.97 | AR7: 0.20 | AS7: 6.97 | AT7: 3.52 | AU7: 1.16 | AV7: 8.01 | AW7: 11.00 | AX7: 2.20 | AY7: 2.20 | AZ7: 11.00 | BC7: 0.20 | BD7: 1.44 | BE7: 59.05 | BF7: 6.00 | BG7: 12.27 | BH7: 1.20 | BI7: 61.33 | BJ7: 59.05 | BK7: 61.33 | BL7: 0.20 | BM7: 210.82 | BN7: 14.11 | BO7: 27.89 | BP7: 1,332.48 | BQ7: (456.90) | BR7: 1,054.11 | BS7: 1,511.01 | BT7: (456.90) | BU7: 70.55 | BV7: 492.26 | BW7: 14.11 | BX7: 2,461.29 | BY7: 70.55 | BZ7: 2,461.29 | CA7: 14.11 | CB7: 12,306.43 | CC7: 5,151.38 | CD7: 7,155.05 | CG7: 0.20 | CH7: 9.17 | CI7: 2.53 | CJ7: 3.24 | CK7: 24.57 | CL7: 433.20 | CM7: 458.53 | CN7: 25.33 | CO7: 433.20 | CP7: 12.67 | CQ7: 5.32 | CR7: 2.53 | CS7: 26.60 | CT7: 12.67 | CU7: 266.00 | CV7: 2.53 | CW7: 1,330.00 | CX7: 1,203.33 | CY7: 126.67
A8: 0.25 | B8: 494.95 | C8: 95.21 | D8: 3.28 | E8: 542.69 | F8: 2,613.97 | G8: 238.02 | H8: 178.52 | I8: 59.51 | J8: 714.06 | L8: 0.25 | M8: 7.62 | N8: 4.40 | O8: 1.08 | P8: 8.36 | Q8: 11.00 | R8: 2.75 | S8: 2.75 | T8: 11.00 | U8: 4.40 | V8: 7.62 | W8: 0.25 | X8: 7.62 | Y8: 4.40 | Z8: 1.08 | AA8: 8.36 | AB8: 11.00 | AC8: 2.75 | AD8: 2.75 | AE8: 11.00 | AG8: 0.25 | AH8: 7.62 | AI8: 4.40 | AJ8: 1.08 | AK8: 8.36 | AL8: 11.00 | AM8: 2.75 | AN8: 2.75 | AO8: 11.00 | AP8: 4.40 | AQ8: 7.62 | AR8: 0.25 | AS8: 7.62 | AT8: 4.40 | AU8: 1.08 | AV8: 8.36 | AW8: 11.00 | AX8: 2.75 | AY8: 2.75 | AZ8: 11.00 | BC8: 0.25 | BD8: 1.80 | BE8: 59.23 | BF8: 6.00 | BG8: 15.33 | BH8: 1.50 | BI8: 61.33 | BJ8: 59.23 | BK8: 61.33 | BL8: 0.25 | BM8: 318.43 | BN8: 17.64 | BO8: 33.00 | BP8: 1,403.03 | BQ8: (271.59) | BR8: 1,592.17 | BS8: 1,863.76 | BT8: (271.59) | BU8: 70.55 | BV8: 615.32 | BW8: 17.64 | BX8: 2,461.29 | BY8: 70.55 | BZ8: 3,076.61 | CA8: 17.64 | CB8: 12,306.43 | CC8: 5,151.38 | CD8: 7,155.05 | CG8: 0.25 | CH8: 11.16 | CI8: 3.17 | CJ8: 3.05 | CK8: 24.70 | CL8: 526.46 | CM8: 558.13 | CN8: 31.67 | CO8: 526.46 | CP8: 12.67 | CQ8: 6.65 | CR8: 3.17 | CS8: 26.60 | CT8: 12.67 | CU8: 332.50 | CV8: 3.17 | CW8: 1,330.00 | CX8: 1,203.33 | CY8: 126.67
A9: 0.30 | B9: 532.39 | C9: 114.25 | D9: 2.99 | E9: 565.54 | F9: 2,905.86 | G9: 238.02 | H9: 214.22 | I9: 71.41 | J9: 714.06 | L9: 0.30 | M9: 8.20 | N9: 5.28 | O9: 1.02 | P9: 8.71 | Q9: 11.00 | R9: 3.30 | S9: 3.30 | T9: 11.00 | U9: 5.28 | V9: 8.20 | W9: 0.30 | X9: 8.20 | Y9: 5.28 | Z9: 1.02 | AA9: 8.71 | AB9: 11.00 | AC9: 3.30 | AD9: 3.30 | AE9: 11.00 | AG9: 0.30 | AH9: 8.20 | AI9: 5.28 | AJ9: 1.02 | AK9: 8.71 | AL9: 11.00 | AM9: 3.30 | AN9: 3.30 | AO9: 11.00 | AP9: 5.28 | AQ9: 8.20 | AR9: 0.30 | AS9: 8.20 | AT9: 5.28 | AU9: 1.02 | AV9: 8.71 | AW9: 11.00 | AX9: 3.30 | AY9: 3.30 | AZ9: 11.00 | BC9: 0.30 | BD9: 2.16 | BE9: 59.41 | BF9: 6.00 | BG9: 18.40 | BH9: 1.80 | BI9: 61.33 | BJ9: 59.41 | BK9: 61.33 | BL9: 0.30 | BM9: 442.74 | BN9: 21.17 | BO9: 37.36 | BP9: 1,473.58 | BQ9: (2.79) | BR9: 2,213.72 | BS9: 2,216.52 | BT9: (2.79) | BU9: 70.55 | BV9: 738.39 | BW9: 21.17 | BX9: 2,461.29 | BY9: 70.55 | BZ9: 3,691.93 | CA9: 21.17 | CB9: 12,306.43 | CC9: 5,151.38 | CD9: 7,155.05 | CG9: 0.30 | CH9: 13.03 | CI9: 3.80 | CJ9: 2.86 | CK9: 24.83 | CL9: 613.70 | CM9: 651.70 | CN9: 38.00 | CO9: 613.70 | CP9: 12.67 | CQ9: 7.98 | CR9: 3.80 | CS9: 26.60 | CT9: 12.67 | CU9: 399.00 | CV9: 3.80 | CW9: 1,330.00 | CX9: 1,203.33 | CY9: 126.67
A10: 0.35 | B10: 566.25 | C10: 133.29 | D10: 2.77 | E10: 588.39 | F10: 3,126.08 | G10: 238.02 | H10: 249.92 | I10: 83.31 | J10: 714.06 | L10: 0.35 | M10: 8.72 | N10: 6.16 | O10: 0.98 | P10: 9.06 | Q10: 11.00 | R10: 3.85 | S10: 3.85 | T10: 11.00 | U10: 6.16 | V10: 8.72 | W10: 0.35 | X10: 8.72 | Y10: 6.16 | Z10: 0.98 | AA10: 9.06 | AB10: 11.00 | AC10: 3.85 | AD10: 3.85 | AE10: 11.00 | AG10: 0.35 | AH10: 8.72 | AI10: 6.16 | AJ10: 0.98 | AK10: 9.06 | AL10: 11.00 | AM10: 3.85 | AN10: 3.85 | AO10: 11.00 | AP10: 6.16 | AQ10: 8.72 | AR10: 0.35 | AS10: 8.72 | AT10: 6.16 | AU10: 0.98 | AV10: 9.06 | AW10: 11.00 | AX10: 3.85 | AY10: 3.85 | AZ10: 11.00 | BC10: 0.35 | BD10: 2.52 | BE10: 59.59 | BF10: 6.00 | BG10: 21.47 | BH10: 2.10 | BI10: 61.33 | BJ10: 59.59 | BK10: 61.33 | BL10: 0.35 | BM10: 581.12 | BN10: 24.69 | BO10: 40.97 | BP10: 1,544.13 | BQ10: 336.31 | BR10: 2,905.58 | BS10: 2,569.27 | BT10: 336.31 | BU10: 70.55 | BV10: 861.45 | BW10: 24.69 | BX10: 2,461.29 | BY10: 70.55 | BZ10: 4,307.25 | CA10: 24.69 | CB10: 12,306.43 | CC10: 5,151.38 | CD10: 7,155.05 | CG10: 0.35 | CH10: 14.79 | CI10: 4.43 | CJ10: 2.67 | CK10: 24.95 | CL10: 694.93 | CM10: 739.26 | CN10: 44.33 | CO10: 694.93 | CP10: 12.67 | CQ10: 9.31 | CR10: 4.43 | CS10: 26.60 | CT10: 12.67 | CU10: 465.50 | CV10: 4.43 | CW10: 1,330.00 | CX10: 1,203.33 | CY10: 126.67
A11: 0.40 | B11: 597.32 | C11: 152.33 | D11: 2.59 | E11: 611.24 | F11: 3,290.42 | G11: 238.02 | H11: 285.62 | I11: 95.21 | J11: 714.06 | L11: 0.40 | M11: 9.20 | N11: 7.04 | O11: 0.94 | P11: 9.41 | Q11: 11.00 | R11: 4.40 | S11: 4.40 | T11: 11.00 | U11: 7.04 | V11: 9.20 | W11: 0.40 | X11: 9.20 | Y11: 7.04 | Z11: 0.94 | AA11: 9.41 | AB11: 11.00 | AC11: 4.40 | AD11: 4.40 | AE11: 11.00 | AG11: 0.40 | AH11: 9.20 | AI11: 7.04 | AJ11: 0.94 | AK11: 9.41 | AL11: 11.00 | AM11: 4.40 | AN11: 4.40 | AO11: 11.00 | AP11: 7.04 | AQ11: 9.20 | AR11: 0.40 | AS11: 9.20 | AT11: 7.04 | AU11: 0.94 | AV11: 9.41 | AW11: 11.00 | AX11: 4.40 | AY11: 4.40 | AZ11: 11.00 | BC11: 0.40 | BD11: 2.88 | BE11: 59.77 | BF11: 6.00 | BG11: 24.53 | BH11: 2.40 | BI11: 61.33 | BJ11: 59.77 | BK11: 61.33 | BL11: 0.40 | BM11: 730.92 | BN11: 28.22 | BO11: 43.84 | BP11: 1,614.68 | BQ11: 732.56 | BR11: 3,654.58 | BS11: 2,922.02 | BT11: 732.56 | BU11: 70.55 | BV11: 984.51 | BW11: 28.22 | BX11: 2,461.29 | BY11: 70.55 | BZ11: 4,922.57 | CA11: 28.22 | CB11: 12,306.43 | CC11: 5,151.38 | CD11: 7,155.05 | CG11: 0.40 | CH11: 16.42 | CI11: 5.07 | CJ11: 2.48 | CK11: 25.08 | CL11: 770.13 | CM11: 820.80 | CN11: 50.67 | CO11: 770.13 | CP11: 12.67 | CQ11: 10.64 | CR11: 5.07 | CS11: 26.60 | CT11: 12.67 | CU11: 532.00 | CV11: 5.07 | CW11: 1,330.00 | CX11: 1,203.33 | CY11: 126.67
A12: 0.45 | B12: 626.14 | C12: 171.37 | D12: 2.44 | E12: 634.09 | F12: 3,409.73 | G12: 238.02 | H12: 321.33 | I12: 107.11 | J12: 714.06 | L12: 0.45 | M12: 9.64 | N12: 7.92 | O12: 0.91 | P12: 9.77 | Q12: 11.00 | R12: 4.95 | S12: 4.95 | T12: 11.00 | U12: 7.92 | V12: 9.64 | W12: 0.45 | X12: 9.64 | Y12: 7.92 | Z12: 0.91 | AA12: 9.77 | AB12: 11.00 | AC12: 4.95 | AD12: 4.95 | AE12: 11.00 | AG12: 0.45 | AH12: 9.64 | AI12: 7.92 | AJ12: 0.91 | AK12: 9.77 | AL12: 11.00 | AM12: 4.95 | AN12: 4.95 | AO12: 11.00 | AP12: 7.92 | AQ12: 9.64 | AR12: 0.45 | AS12: 9.64 | AT12: 7.92 | AU12: 0.91 | AV12: 9.77 | AW12: 11.00 | AX12: 4.95 | AY12: 4.95 | AZ12: 11.00 | BC12: 0.45 | BD12: 3.24 | BE12: 59.95 | BF12: 6.00 | BG12: 27.60 | BH12: 2.70 | BI12: 61.33 | BJ12: 59.95 | BK12: 61.33 | BL12: 0.45 | BM12: 889.51 | BN12: 31.75 | BO12: 45.96 | BP12: 1,685.23 | BQ12: 1,172.78 | BR12: 4,447.55 | BS12: 3,274.77 | BT12: 1,172.78 | BU12: 70.55 | BV12: 1,107.58 | BW12: 31.75 | BX12: 2,461.29 | BY12: 70.55 | BZ12: 5,537.89 | CA12: 31.75 | CB12: 12,306.43 | CC12: 5,151.38 | CD12: 7,155.05 | CG12: 0.45 | CH12: 17.93 | CI12: 5.70 | CJ12: 2.29 | CK12: 25.21 | CL12: 839.33 | CM12: 896.33 | CN12: 57.00 | CO12: 839.33 | CP12: 12.67 | CQ12: 11.97 | CR12: 5.70 | CS12: 26.60 | CT12: 12.67 | CU12: 598.50 | CV12: 5.70 | CW12: 1,330.00 | CX12: 1,203.33 | CY12: 126.67
A13: 0.50 | B13: 653.09 | C13: 190.42 | D13: 2.32 | E13: 656.94 | F13: 3,491.77 | G13: 238.02 | H13: 357.03 | I13: 119.01 | J13: 714.06 | L13: 0.50 | M13: 10.06 | N13: 8.80 | O13: 0.88 | P13: 10.12 | Q13: 11.00 | R13: 5.50 | S13: 5.50 | T13: 11.00 | U13: 8.80 | V13: 10.06 | W13: 0.50 | X13: 10.06 | Y13: 8.80 | Z13: 0.88 | AA13: 10.12 | AB13: 11.00 | AC13: 5.50 | AD13: 5.50 | AE13: 11.00 | AG13: 0.50 | AH13: 10.06 | AI13: 8.80 | AJ13: 0.88 | AK13: 10.12 | AL13: 11.00 | AM13: 5.50 | AN13: 5.50 | AO13: 11.00 | AP13: 8.80 | AQ13: 10.06 | AR13: 0.50 | AS13: 10.06 | AT13: 8.80 | AU13: 0.88 | AV13: 10.12 | AW13: 11.00 | AX13: 5.50 | AY13: 5.50 | AZ13: 11.00 | BC13: 0.50 | BD13: 3.60 | BE13: 60.13 | BF13: 6.00 | BG13: 30.67 | BH13: 3.00 | BI13: 61.33 | BJ13: 60.13 | BK13: 61.33 | BL13: 0.50 | BM13: 1,054.27 | BN13: 35.28 | BO13: 47.33 | BP13: 1,755.78 | BQ13: 1,643.81 | BR13: 5,271.33 | BS13: 3,627.53 | BT13: 1,643.81 | BU13: 70.55 | BV13: 1,230.64 | BW13: 35.28 | BX13: 2,461.29 | BY13: 70.55 | BZ13: 6,153.22 | CA13: 35.28 | CB13: 12,306.43 | CC13: 5,151.38 | CD13: 7,155.05 | CG13: 0.50 | CH13: 19.32 | CI13: 6.33 | CJ13: 2.10 | CK13: 25.33 | CL13: 902.50 | CM13: 965.83 | CN13: 63.33 | CO13: 902.50 | CP13: 12.67 | CQ13: 13.30 | CR13: 6.33 | CS13: 26.60 | CT13: 12.67 | CU13: 665.00 | CV13: 6.33 | CW13: 1,330.00 | CX13: 1,203.33 | CY13: 126.67
A14: 0.55 | B14: 678.47 | C14: 209.46 | D14: 2.21 | E14: 679.79 | F14: 3,542.35 | G14: 238.02 | H14: 392.73 | I14: 130.91 | J14: 714.06 | L14: 0.55 | M14: 10.45 | N14: 9.68 | O14: 0.85 | P14: 10.47 | Q14: 11.00 | R14: 6.05 | S14: 6.05 | T14: 11.00 | U14: 9.68 | V14: 10.45 | W14: 0.55 | X14: 10.45 | Y14: 9.68 | Z14: 0.85 | AA14: 10.47 | AB14: 11.00 | AC14: 6.05 | AD14: 6.05 | AE14: 11.00 | AG14: 0.55 | AH14: 10.45 | AI14: 9.68 | AJ14: 0.85 | AK14: 10.47 | AL14: 11.00 | AM14: 6.05 | AN14: 6.05 | AO14: 11.00 | AP14: 9.68 | AQ14: 10.45 | AR14: 0.55 | AS14: 10.45 | AT14: 9.68 | AU14: 0.85 | AV14: 10.47 | AW14: 11.00 | AX14: 6.05 | AY14: 6.05 | AZ14: 11.00 | BC14: 0.55 | BD14: 3.96 | BE14: 60.31 | BF14: 6.00 | BG14: 33.73 | BH14: 3.30 | BI14: 61.33 | BJ14: 60.31 | BK14: 61.33 | BL14: 0.55 | BM14: 1,222.55 | BN14: 38.80 | BO14: 47.96 | BP14: 1,826.33 | BQ14: 2,132.47 | BR14: 6,112.75 | BS14: 3,980.28 | BT14: 2,132.47 | BU14: 70.55 | BV14: 1,353.71 | BW14: 38.80 | BX14: 2,461.29 | BY14: 70.55 | BZ14: 6,768.54 | CA14: 38.80 | CB14: 12,306.43 | CC14: 5,151.38 | CD14: 7,155.05 | CG14: 0.55 | CH14: 20.59 | CI14: 6.97 | CJ14: 1.91 | CK14: 25.46 | CL14: 959.66 | CM14: 1,029.33 | CN14: 69.67 | CO14: 959.66 | CP14: 12.67 | CQ14: 14.63 | CR14: 6.97 | CS14: 26.60 | CT14: 12.67 | CU14: 731.50 | CV14: 6.97 | CW14: 1,330.00 | CX14: 1,203.33 | CY14: 126.67
A15: 0.60 | B15: 702.50 | C15: 228.50 | D15: 2.12 | E15: 702.64 | F15: 3,565.94 | G15: 238.02 | H15: 428.44 | I15: 142.81 | J15: 714.06 | L15: 0.60 | M15: 10.82 | N15: 10.56 | O15: 0.83 | P15: 10.82 | Q15: 11.00 | R15: 6.60 | S15: 6.60 | T15: 11.00 | U15: 10.56 | V15: 10.82 | W15: 0.60 | X15: 10.82 | Y15: 10.56 | Z15: 0.83 | AA15: 10.82 | AB15: 11.00 | AC15: 6.60 | AD15: 6.60 | AE15: 11.00 | AG15: 0.60 | AH15: 10.82 | AI15: 10.56 | AJ15: 0.83 | AK15: 10.82 | AL15: 11.00 | AM15: 6.60 | AN15: 6.60 | AO15: 11.00 | AP15: 10.56 | AQ15: 10.82 | AR15: 0.60 | AS15: 10.82 | AT15: 10.56 | AU15: 0.83 | AV15: 10.82 | AW15: 11.00 | AX15: 6.60 | AY15: 6.60 | AZ15: 11.00 | BC15: 0.60 | BD15: 4.32 | BE15: 60.49 | BF15: 6.00 | BG15: 36.80 | BH15: 3.60 | BI15: 61.33 | BJ15: 60.49 | BK15: 61.33 | BL15: 0.60 | BM15: 1,391.73 | BN15: 42.33 | BO15: 47.84 | BP15: 1,896.88 | BQ15: 2,625.61 | BR15: 6,958.64 | BS15: 4,333.03 | BT15: 2,625.61 | BU15: 70.55 | BV15: 1,476.77 | BW15: 42.33 | BX15: 2,461.29 | BY15: 70.55 | BZ15: 7,383.86 | CA15: 42.33 | CB15: 12,306.43 | CC15: 5,151.38 | CD15: 7,155.05 | CG15: 0.60 | CH15: 21.74 | CI15: 7.60 | CJ15: 1.72 | CK15: 25.59 | CL15: 1,010.80 | CM15: 1,086.80 | CN15: 76.00 | CO15: 1,010.80 | CP15: 12.67 | CQ15: 15.96 | CR15: 7.60 | CS15: 26.60 | CT15: 12.67 | CU15: 798.00 | CV15: 7.60 | CW15: 1,330.00 | CX15: 1,203.33 | CY15: 126.67
A16: 0.65 | B16: 725.35 | C16: 247.54 | D16: 2.03 | E16: 725.49 | F16: 3,566.06 | G16: 238.02 | H16: 464.14 | I16: 154.71 | J16: 714.06 | L16: 0.65 | M16: 11.17 | N16: 11.44 | O16: 0.81 | P16: 11.17 | Q16: 11.00 | R16: 7.15 | S16: 7.15 | T16: 11.00 | U16: 11.44 | V16: 11.17 | W16: 0.65 | X16: 11.17 | Y16: 11.44 | Z16: 0.81 | AA16: 11.17 | AB16: 11.00 | AC16: 7.15 | AD16: 7.15 | AE16: 11.00 | AG16: 0.65 | AH16: 11.17 | AI16: 11.44 | AJ16: 0.81 | AK16: 11.17 | AL16: 11.00 | AM16: 7.15 | AN16: 7.15 | AO16: 11.00 | AP16: 11.44 | AQ16: 11.17 | AR16: 0.65 | AS16: 11.17 | AT16: 11.44 | AU16: 0.81 | AV16: 11.17 | AW16: 11.00 | AX16: 7.15 | AY16: 7.15 | AZ16: 11.00 | BC16: 0.65 | BD16: 4.68 | BE16: 60.67 | BF16: 6.00 | BG16: 39.87 | BH16: 3.90 | BI16: 61.33 | BJ16: 60.67 | BK16: 61.33 | BL16: 0.65 | BM16: 1,559.17 | BN16: 45.86 | BO16: 46.97 | BP16: 1,967.43 | BQ16: 3,110.05 | BR16: 7,795.83 | BS16: 4,685.78 | BT16: 3,110.05 | BU16: 70.55 | BV16: 1,599.84 | BW16: 45.86 | BX16: 2,461.29 | BY16: 70.55 | BZ16: 7,999.18 | CA16: 45.86 | CB16: 12,306.43 | CC16: 5,151.38 | CD16: 7,155.05 | CG16: 0.65 | CH16: 22.77 | CI16: 8.23 | CJ16: 1.53 | CK16: 25.71 | CL16: 1,055.93 | CM16: 1,138.26 | CN16: 82.33 | CO16: 1,055.93 | CP16: 12.67 | CQ16: 17.29 | CR16: 8.23 | CS16: 26.60 | CT16: 12.67 | CU16: 864.50 | CV16: 8.23 | CW16: 1,330.00 | CX16: 1,203.33 | CY16: 126.67
A17: 0.70 | B17: 747.18 | C17: 266.58 | D17: 1.96 | E17: 748.34 | F17: 3,545.53 | G17: 238.02 | H17: 499.84 | I17: 166.61 | J17: 714.06 | L17: 0.70 | M17: 11.51 | N17: 12.32 | O17: 0.79 | P17: 11.53 | Q17: 11.00 | R17: 7.70 | S17: 7.70 | T17: 11.00 | U17: 12.32 | V17: 11.51 | W17: 0.70 | X17: 11.51 | Y17: 12.32 | Z17: 0.79 | AA17: 11.53 | AB17: 11.00 | AC17: 7.70 | AD17: 7.70 | AE17: 11.00 | AG17: 0.70 | AH17: 11.51 | AI17: 12.32 | AJ17: 0.79 | AK17: 11.53 | AL17: 11.00 | AM17: 7.70 | AN17: 7.70 | AO17: 11.00 | AP17: 12.32 | AQ17: 11.51 | AR17: 0.70 | AS17: 11.51 | AT17: 12.32 | AU17: 0.79 | AV17: 11.53 | AW17: 11.00 | AX17: 7.70 | AY17: 7.70 | AZ17: 11.00 | BC17: 0.70 | BD17: 5.04 | BE17: 60.85 | BF17: 6.00 | BG17: 42.93 | BH17: 4.20 | BI17: 61.33 | BJ17: 60.85 | BK17: 61.33 | BL17: 0.70 | BM17: 1,722.23 | BN17: 49.39 | BO17: 45.36 | BP17: 2,037.98 | BQ17: 3,572.61 | BR17: 8,611.15 | BS17: 5,038.54 | BT17: 3,572.61 | BU17: 70.55 | BV17: 1,722.90 | BW17: 49.39 | BX17: 2,461.29 | BY17: 70.55 | BZ17: 8,614.50 | CA17: 49.39 | CB17: 12,306.43 | CC17: 5,151.38 | CD17: 7,155.05 | CG17: 0.70 | CH17: 23.67 | CI17: 8.87 | CJ17: 1.34 | CK17: 25.84 | CL17: 1,095.03 | CM17: 1,183.70 | CN17: 88.67 | CO17: 1,095.03 | CP17: 12.67 | CQ17: 18.62 | CR17: 8.87 | CS17: 26.60 | CT17: 12.67 | CU17: 931.00 | CV17: 8.87 | CW17: 1,330.00 | CX17: 1,203.33 | CY17: 126.67
A18: 0.75 | B18: 768.08 | C18: 285.62 | D18: 1.89 | E18: 771.19 | F18: 3,506.67 | G18: 238.02 | H18: 535.55 | I18: 178.52 | J18: 714.06 | L18: 0.75 | M18: 11.83 | N18: 13.20 | O18: 0.78 | P18: 11.88 | Q18: 11.00 | R18: 8.25 | S18: 8.25 | T18: 11.00 | U18: 13.20 | V18: 11.83 | W18: 0.75 | X18: 11.83 | Y18: 13.20 | Z18: 0.78 | AA18: 11.88 | AB18: 11.00 | AC18: 8.25 | AD18: 8.25 | AE18: 11.00 | AG18: 0.75 | AH18: 11.83 | AI18: 13.20 | AJ18: 0.78 | AK18: 11.88 | AL18: 11.00 | AM18: 8.25 | AN18: 8.25 | AO18: 11.00 | AP18: 13.20 | AQ18: 11.83 | AR18: 0.75 | AS18: 11.83 | AT18: 13.20 | AU18: 0.78 | AV18: 11.88 | AW18: 11.00 | AX18: 8.25 | AY18: 8.25 | AZ18: 11.00 | BC18: 0.75 | BD18: 5.40 | BE18: 61.03 | BF18: 6.00 | BG18: 46.00 | BH18: 4.50 | BI18: 61.33 | BJ18: 61.03 | BK18: 61.33 | BL18: 0.75 | BM18: 1,878.29 | BN18: 52.91 | BO18: 43.00 | BP18: 2,108.53 | BQ18: 4,000.15 | BR18: 9,391.43 | BS18: 5,391.29 | BT18: 4,000.15 | BU18: 70.55 | BV18: 1,845.96 | BW18: 52.91 | BX18: 2,461.29 | BY18: 70.55 | BZ18: 9,229.82 | CA18: 52.91 | CB18: 12,306.43 | CC18: 5,151.38 | CD18: 7,155.05 | CG18: 0.75 | CH18: 24.46 | CI18: 9.50 | CJ18: 1.15 | CK18: 25.97 | CL18: 1,128.13 | CM18: 1,223.13 | CN18: 95.00 | CO18: 1,128.13 | CP18: 12.67 | CQ18: 19.95 | CR18: 9.50 | CS18: 26.60 | CT18: 12.67 | CU18: 997.50 | CV18: 9.50 | CW18: 1,330.00 | CX18: 1,203.33 | CY18: 126.67
A19: 0.80 | B19: 788.17 | C19: 304.67 | D19: 1.83 | E19: 794.04 | F19: 3,451.40 | G19: 238.02 | H19: 571.25 | I19: 190.42 | J19: 714.06 | L19: 0.80 | M19: 12.14 | N19: 14.08 | O19: 0.76 | P19: 12.23 | Q19: 11.00 | R19: 8.80 | S19: 8.80 | T19: 11.00 | U19: 14.08 | V19: 12.14 | W19: 0.80 | X19: 12.14 | Y19: 14.08 | Z19: 0.76 | AA19: 12.23 | AB19: 11.00 | AC19: 8.80 | AD19: 8.80 | AE19: 11.00 | AG19: 0.80 | AH19: 12.14 | AI19: 14.08 | AJ19: 0.76 | AK19: 12.23 | AL19: 11.00 | AM19: 8.80 | AN19: 8.80 | AO19: 11.00 | AP19: 14.08 | AQ19: 12.14 | AR19: 0.80 | AS19: 12.14 | AT19: 14.08 | AU19: 0.76 | AV19: 12.23 | AW19: 11.00 | AX19: 8.80 | AY19: 8.80 | AZ19: 11.00 | BC19: 0.80 | BD19: 5.76 | BE19: 61.21 | BF19: 6.00 | BG19: 49.07 | BH19: 4.80 | BI19: 61.33 | BJ19: 61.21 | BK19: 61.33 | BL19: 0.80 | BM19: =(($BN$32*BN19^3)+($BN$33*BN19^2*$BN$37)+($BN$34*BN19)+$BN$35) -> 2,024.70 | BN19: 56.44 | BO19: =((3*$BN$32*BN19^2)+(2*$BN$33*BN19*$BN$37)+($BN$34)) -> 39.89 | BP19: 2,179.08 | BQ19: =(BM19*$BP$32)-((BN19*$BP$34)+($BP$37*$BP$36)) -> 4,379.48 | BR19: 10,123.52 | BS19: 5,744.04 | BT19: 4,379.48 | BU19: 70.55 | BV19: 1,969.03 | BW19: 56.44 | BX19: 2,461.29 | BY19: 70.55 | BZ19: 9,845.14 | CA19: 56.44 | CB19: 12,306.43 | CC19: 5,151.38 | CD19: 7,155.05 | CG19: 0.80 | CH19: 25.13 | CI19: 10.13 | CJ19: 0.96 | CK19: 26.09 | CL19: 1,155.20 | CM19: 1,256.53 | CN19: 101.33 | CO19: 1,155.20 | CP19: 12.67 | CQ19: 21.28 | CR19: 10.13 | CS19: 26.60 | CT19: 12.67 | CU19: 1,064.00 | CV19: 10.13 | CW19: 1,330.00 | CX19: 1,203.33 | CY19: 126.67
A20: 0.85 | B20: 807.52 | C20: 323.71 | D20: 1.78 | E20: 816.89 | F20: 3,381.34 | G20: 238.02 | H20: 606.95 | I20: 202.32 | J20: 714.06 | L20: 0.85 | M20: 12.44 | N20: 14.96 | O20: 0.75 | P20: 12.58 | Q20: 11.00 | R20: 9.35 | S20: 9.35 | T20: 11.00 | U20: 14.96 | V20: 12.44 | W20: 0.85 | X20: 12.44 | Y20: 14.96 | Z20: 0.75 | AA20: 12.58 | AB20: 11.00 | AC20: 9.35 | AD20: 9.35 | AE20: 11.00 | AG20: 0.85 | AH20: 12.44 | AI20: 14.96 | AJ20: 0.75 | AK20: 12.58 | AL20: 11.00 | AM20: 9.35 | AN20: 9.35 | AO20: 11.00 | AP20: 14.96 | AQ20: 12.44 | AR20: 0.85 | AS20: 12.44 | AT20: 14.96 | AU20: 0.75 | AV20: 12.58 | AW20: 11.00 | AX20: 9.35 | AY20: 9.35 | AZ20: 11.00 | BC20: 0.85 | BD20: 6.12 | BE20: 61.39 | BF20: 6.00 | BG20: 52.13 | BH20: 5.10 | BI20: 61.33 | BJ20: 61.39 | BK20: 61.33 | BL20: 0.85 | BM20: 2,158.84 | BN20: 59.97 | BO20: 36.04 | BP20: 2,249.63 | BQ20: 4,697.43 | BR20: 10,794.22 | BS20: 6,096.79 | BT20: 4,697.43 | BU20: 70.55 | BV20: 2,092.09 | BW20: 59.97 | BX20: 2,461.29 | BY20: 70.55 | BZ20: 10,460.47 | CA20: 59.97 | CB20: 12,306.43 | CC20: =CC19 -> 5,151.38 | CD20: 7,155.05 | CG20: 0.85 | CH20: 25.68 | CI20: 10.77 | CJ20: 0.77 | CK20: 26.22 | CL20: 1,176.26 | CM20: 1,283.93 | CN20: 107.67 | CO20: 1,176.26 | CP20: 12.67 | CQ20: 22.61 | CR20: 10.77 | CS20: 26.60 | CT20: 12.67 | CU20: 1,130.50 | CV20: 10.77 | CW20: 1,330.00 | CX20: 1,203.33 | CY20: 126.67
A21: 0.90 | B21: 826.19 | C21: 342.75 | D21: 1.73 | E21: 839.74 | F21: 3,297.84 | G21: 238.02 | H21: 642.66 | I21: 214.22 | J21: 714.06 | L21: 0.90 | M21: 12.72 | N21: 15.84 | O21: 0.74 | P21: 12.93 | Q21: 11.00 | R21: 9.90 | S21: 9.90 | T21: 11.00 | U21: 15.84 | V21: 12.72 | W21: 0.90 | X21: 12.72 | Y21: 15.84 | Z21: 0.74 | AA21: 12.93 | AB21: 11.00 | AC21: 9.90 | AD21: 9.90 | AE21: 11.00 | AG21: 0.90 | AH21: 12.72 | AI21: 15.84 | AJ21: 0.74 | AK21: 12.93 | AL21: 11.00 | AM21: 9.90 | AN21: 9.90 | AO21: 11.00 | AP21: 15.84 | AQ21: 12.72 | AR21: 0.90 | AS21: 12.72 | AT21: 15.84 | AU21: 0.74 | AV21: 12.93 | AW21: 11.00 | AX21: 9.90 | AY21: 9.90 | AZ21: 11.00 | BC21: 0.90 | BD21: 6.48 | BE21: 61.57 | BF21: 6.00 | BG21: 55.20 | BH21: 5.40 | BI21: 61.33 | BJ21: 61.57 | BK21: 61.33 | BL21: 0.90 | BM21: 2,278.08 | BN21: 63.50 | BO21: 31.44 | BP21: 2,320.19 | BQ21: 4,940.85 | BR21: 11,390.39 | BS21: 6,449.55 | BT21: 4,940.85 | BU21: 70.55 | BV21: 2,215.16 | BW21: 63.50 | BX21: 2,461.29 | BY21: 70.55 | BZ21: 11,075.79 | CA21: 63.50 | CB21: 12,306.43 | CC21: 5,151.38 | CD21: 7,155.05 | CG21: 0.90 | CH21: 26.11 | CI21: 11.40 | CJ21: 0.58 | CK21: 26.35 | CL21: 1,191.30 | CM21: 1,305.30 | CN21: 114.00 | CO21: 1,191.30 | CP21: 12.67 | CQ21: 23.94 | CR21: 11.40 | CS21: =CS20 -> 26.60 | CT21: 12.67 | CU21: 1,197.00 | CV21: 11.40 | CW21: =CW20 -> 1,330.00 | CX21: 1,203.33 | CY21: 126.67
A22: 0.95 | B22: 844.25 | C22: 361.79 | D22: 1.68 | E22: 862.59 | F22: 3,202.09 | G22: 238.02 | H22: 678.36 | I22: 226.12 | J22: 714.06 | L22: 0.95 | M22: 13.00 | N22: 16.72 | O22: 0.72 | P22: 13.29 | Q22: 11.00 | R22: 10.45 | S22: 10.45 | T22: 11.00 | U22: 16.72 | V22: 13.00 | W22: 0.95 | X22: 13.00 | Y22: 16.72 | Z22: 0.72 | AA22: 13.29 | AB22: 11.00 | AC22: 10.45 | AD22: 10.45 | AE22: 11.00 | AG22: 0.95 | AH22: 13.00 | AI22: 16.72 | AJ22: 0.72 | AK22: 13.29 | AL22: 11.00 | AM22: 10.45 | AN22: 10.45 | AO22: 11.00 | AP22: 16.72 | AQ22: 13.00 | AR22: 0.95 | AS22: 13.00 | AT22: 16.72 | AU22: 0.72 | AV22: 13.29 | AW22: 11.00 | AX22: 10.45 | AY22: 10.45 | AZ22: 11.00 | BC22: 0.95 | BD22: 6.84 | BE22: 61.75 | BF22: 6.00 | BG22: 58.27 | BH22: 5.70 | BI22: 61.33 | BJ22: 61.75 | BK22: 61.33 | BL22: 0.95 | BM22: 2,379.77 | BN22: 67.02 | BO22: 26.09 | BP22: 2,390.74 | BQ22: 5,096.55 | BR22: 11,898.85 | BS22: 6,802.30 | BT22: 5,096.55 | BU22: 70.55 | BV22: 2,338.22 | BW22: 67.02 | BX22: 2,461.29 | BY22: 70.55 | BZ22: 11,691.11 | CA22: 67.02 | CB22: 12,306.43 | CC22: 5,151.38 | CD22: 7,155.05 | CG22: 0.95 | CH22: 26.41 | CI22: 12.03 | CJ22: 0.39 | CK22: 26.47 | CL22: 1,200.33 | CM22: 1,320.66 | CN22: 120.33 | CO22: 1,200.33 | CP22: 12.67 | CQ22: 25.27 | CR22: 12.03 | CS22: 26.60 | CT22: 12.67 | CU22: 1,263.50 | CV22: 12.03 | CW22: 1,330.00 | CX22: 1,203.33 | CY22: 126.67
A23: 1.00 | B23: 861.75 | C23: 380.83 | D23: =$C$30*$C$28*(($C$31/C23)^($C$32)) -> 1.64 | E23: 885.44 | F23: 3,095.11 | G23: 238.02 | H23: 714.06 | I23: 238.02 | J23: 714.06 | L23: 1.00 | M23: 13.27 | N23: 17.60 | O23: 0.71 | P23: 13.64 | Q23: 11.00 | R23: 11.00 | S23: 11.00 | T23: 11.00 | U23: 17.60 | V23: 13.27 | W23: 1.00 | X23: =Y$28*(Y23^(Y$30))*(Y$31^(Y$32)) -> 13.27 | Y23: 17.60 | Z23: 0.71 | AA23: =((AA$27/AA$28)+(AA$32*AA$33)/AA$28)+((AA$30/AA$28)*Y23) -> 13.64 | AB23: 11.00 | AC23: 11.00 | AD23: 11.00 | AE23: 11.00 | AG23: 1.00 | AH23: 13.27 | AI23: 17.60 | AJ23: 0.71 | AK23: 13.64 | AL23: 11.00 | AM23: 11.00 | AN23: 11.00 | AO23: 11.00 | AP23: 17.60 | AQ23: 13.27 | AR23: 1.00 | AS23: =AT$28*(AT23^(AT$30))*(AT$31^(AT$32)) -> 13.27 | AT23: 17.60 | AU23: 0.71 | AV23: =((AV$27/AV$28)+(AV$32*AV$33)/AV$28)+((AV$30/AV$28)*AT23) -> 13.64 | AW23: 11.00 | AX23: 11.00 | AY23: 11.00 | AZ23: 11.00 | BC23: 1.00 | BD23: 7.20 | BE23: 61.93 | BF23: 6.00 | BG23: 61.33 | BH23: 6.00 | BI23: 61.33 | BJ23: 61.93 | BK23: 61.33 | BL23: 1.00 | BM23: 2,461.29 | BN23: 70.55 | BO23: 20.00 | BP23: 2,461.29 | BQ23: 5,151.38 | BR23: 12,306.43 | BS23: 7,155.05 | BT23: 5,151.38 | BU23: 70.55 | BV23: 2,461.29 | BW23: 70.55 | BX23: 2,461.29 | BY23: 70.55 | BZ23: 12,306.43 | CA23: 70.55 | CB23: 12,306.43 | CC23: 5,151.38 | CD23: 7,155.05 | CG23: 1.00 | CH23: 26.60 | CI23: 12.67 | CJ23: 0.20 | CK23: 26.60 | CL23: 1,203.33 | CM23: 1,330.00 | CN23: 126.67 | CO23: 1,203.33 | CP23: 12.67 | CQ23: 26.60 | CR23: 12.67 | CS23: 26.60 | CT23: 12.67 | CU23: 1,330.00 | CV23: 12.67 | CW23: 1,330.00 | CX23: 1,203.33 | CY23: 126.67
BL24: 1.05 | BM24: 2,519.99 | BN24: 74.08 | BO24: 13.16 | BP24: 2,531.84 | BQ24: 5,092.16 | BR24: 12,599.97 | BS24: 7,507.80 | BT24: 5,092.16 | CG24: 1.05 | CH24: 26.67 | CI24: 13.30 | CJ24: 0.01 | CK24: 26.73 | CL24: 1,200.33 | CM24: 1,333.33 | CN24: 133.00 | CO24: 1,200.33
AA25: =((AA$30/AA$28)*Y23) -> 7.039 | AV25: =((AV$30/AV$28)*AT23) -> 7.039 | BH25: Caso 2 | BL25: 1.10 | BM25: 2,553.26 | BN25: 77.61 | BO25: 5.57 | BP25: 2,602.39 | BQ25: 4,905.73 | BR25: =BM25*$BP$32 -> 12,766.29 | BS25: 7,860.56 | BT25: 4,905.73 | CG25: 1.10 | CH25: 26.61 | CI25: 13.93 | CJ25: (0.18) | CK25: 26.85 | CL25: 1,191.30 | CM25: 1,330.63 | CN25: 139.33 | CO25: 1,191.30
BF26: p | BG26: =Isobeneficio!D5 -> 400.0 | BH26: =Isobeneficio!E5 -> 400.0 | BL26: 1.15 | BM26: 2,558.44 | BN26: 81.13 | BO26: (2.76) | BP26: 2,672.94 | BQ26: 4,578.92 | BR26: =BM26*$BP$32 -> 12,792.22 | BS26: 8,213.31 | BT26: 4,578.92 | CG26: 1.15 | CH26: 26.44 | CI26: 14.57 | CJ26: (0.37) | CK26: 26.98 | CL26: 1,176.26 | CM26: 1,321.93 | CN26: 145.67 | CO26: 1,176.26
B27: y | C27: =C28*(C29^(C30))*(C31^(C32)) -> 714.1 | D27: p | E27: =(E28*C27)-(E30*E31+E32*E33) -> 3,568.7 | M27: y | N27: =N28*(N29^(N30))*(N31^(N32)) -> 11.0 | O27: p | P27: =(P28*N27)-(P30*P31+P32*P33) -> 9.0 | X27: y | Y27: =Y28*(Y29^(Y30))*(Y31^(Y32)) -> 11.0 | Z27: p | AA27: =(AA28*Y27)-(AA30*AA31+AA32*AA33) -> 9.0 | AH27: y | AI27: =AI28*(AI29^(AI30))*(AI31^(AI32)) -> 11.0 | AJ27: p | AK27: =(AK28*AI27)-(AK30*AK31+AK32*AK33) -> 9.0 | AS27: y | AT27: =AT28*(AT29^(AT30))*(AT31^(AT32)) -> 11.0 | AU27: p | AV27: =(AV28*AT27)-(AV30*AV31+AV32*AV33) -> 9.0 | BF27: y | BG27: =((BG26+(BG31*BG32))/BG28)+((BG29/BG28)*BG30) -> 61.3 | BH27: =((BH26+(BH31*BH32))/BH28)+((BH29/BH28)*BH30) -> 61.3 | BL27: 1.20 | BM27: 2,532.92 | BN27: 84.66 | BO27: (11.84) | BP27: 2,743.49 | BQ27: 4,098.55 | BR27: 12,664.61 | BS27: =($BN$37*$BP$36)+(BN27*$BP$34) -> 8,566.06 | BT27: 4,098.55 | CG27: 1.20 | CH27: 26.14 | CI27: 15.20 | CJ27: (0.56) | CK27: 27.11 | CL27: 1,155.20 | CM27: 1,307.20 | CN27: 152.00 | CO27: 1,155.20
B28: A | C28: ='MaxBen cp'!C6 -> 8.0 | D28: p | E28: ='MaxBen cp'!E6 -> 20.0 | M28: A | N28: ='MaxBen cp Dq1'!$C$8 -> 2.0 | O28: p | P28: ='MaxBen cp Dq1'!$E$8 -> 5.0 | Q28: y | R28: =SUM(R29:R31) -> 11.0 | X28: A | Y28: ='MaxBen cp Dq1'!$C$8 -> 2.0 | Z28: p | AA28: ='MaxBen cp Dq1'!$E$8 -> 5.0 | AB28: y | AC28: =SUM(AC29:AC31) -> 10.998 | AH28: A | AI28: ='Demanda Factor Variable'!C7 -> 2.0 | AJ28: p | AK28: ='Demanda Factor Variable'!E7 -> 5.0 | AL28: y | AM28: =SUM(AM29:AM31) -> 11.0 | AS28: A | AT28: =AI28 -> 2.0 | AU28: p | AV28: ='Demanda Factor Variable'!G7 -> 5.0 | AW28: y | AX28: =SUM(AX29:AX31) -> 10.998 | BF28: p | BG28: =Isobeneficio!D7 -> 12.0 | BH28: =Isobeneficio!E7 -> 12.0
B29: x1 | C29: =E31 -> 238.0 | D29: y | E29: =((E28*C30)/E30)^(C30/(1-C30))*(E33)^(C32/(1-C30))*(C28^(1/(1-C30))) -> 714.1 | M29: x1 | N29: =P31 -> 11.0 | O29: y | P29: =((P28*N30)/P30)^(N30/(1-N30))*(P33)^(N32/(1-N30))*(N28^(1/(1-N30))) -> 11.0 | Q29: p / P | R29: =P27/P28 -> 1.8 | X29: x1 | Y29: =AA31 -> 11.0 | Z29: y | AA29: =((AA28*Y30)/AA30)^(Y30/(1-Y30))*(AA33)^(Y32/(1-Y30))*(Y28^(1/(1-Y30))) -> 11.0 | AB29: p / P | AC29: =AA27/AA28 -> 1.799 | AH29: x1 | AI29: =AK31 -> 11.0 | AJ29: y | AK29: =((AK28*AI30)/AK30)^(AI30/(1-AI30))*(AK33)^(AI32/(1-AI30))*(AI28^(1/(1-AI30))) -> 11.0 | AL29: p / P | AM29: =AK27/AK28 -> 1.8 | AS29: x1 | AT29: =AV31 -> 11.0 | AU29: y | AV29: =((AV28*AT30)/AV30)^(AT30/(1-AT30))*(AV33)^(AT32/(1-AT30))*(AT28^(1/(1-AT30))) -> 11.0 | AW29: p / P | AX29: =AV27/AV28 -> 1.799 | BF29: w1 | BG29: =Isobeneficio!D8 -> 6.0 | BH29: =Isobeneficio!E8 -> 6.0 | BP29: =((BP34*BN36)+(BP36*BN37)) -> 7,155.05 | CK29: =((CK34*CI36)+(CK36*CI37)) -> 126.67
B30: a | C30: ='MaxBen cp'!C8 -> 0.4 | D30: w1 | E30: ='MaxBen cp'!E7 -> 24.0 | F30: =E30/E28 -> 1.2 | M30: a | N30: ='MaxBen cp Dq1'!$C$10 -> 0.4 | O30: w1 | P30: ='MaxBen cp Dq1'!E9 -> 2.0 | Q30: (w2 / P) * x2 | R30: =P32/P28*P33 -> 4.8 | X30: a | Y30: ='MaxBen cp Dq1'!$C$10 -> 0.4 | Z30: w1 | AA30: ='MaxBen cp Dq1'!G9 -> 2.0 | AB30: (w2 / P) * x2 | AC30: =AA32/AA28*AA33 -> 4.800 | AH30: a | AI30: ='Demanda Factor Variable'!C9 -> 0.4 | AJ30: w1 | AK30: ='Demanda Factor Variable'!E8 -> 2.0 | AL30: (w2 / P) * x2 | AM30: =AK32/AK28*AK33 -> 4.8 | AS30: a | AT30: =AI30 -> 0.4 | AU30: w1 | AV30: ='Demanda Factor Variable'!G8 -> 2.0 | AW30: (w2 / P) * x2 | AX30: =AV32/AV28*AV33 -> 4.800 | BF30: x1 | BG30: =Isobeneficio!D9 -> 6.0 | BH30: =Isobeneficio!E9 -> 6.0 | BP30: =BN31*BP32 -> 12306.4309 | CK30: =CI31*CK32 -> 1330
B31: x2 | C31: =E33 -> 100.0 | D31: x1 | E31: =(C30*E28*E29)/E30 -> 238.0 | F31: =C30*C28*((E31)^(C30-1))*(E33^(C32)) -> 1.2 | M31: x2 | N31: =P33 -> 12.0 | O31: x1 | P31: =(N30*P28*P29)/P30 -> 11.0 | Q31: (w1 / P) * x1 | R31: =P30/P28*P31 -> 4.4 | X31: x2 | Y31: =AA33 -> 12.0 | Z31: x1 | AA31: =(Y30*AA28*AA29)/AA30 -> 11.0 | AB31: (w1 / P) * x1 | AC31: =AA30/AA28*AA31 -> 4.399 | AH31: x2 | AI31: =AK33 -> 12.0 | AJ31: x1 | AK31: =(AI30*AK28*AK29)/AK30 -> 11.0 | AL31: (w1 / P) * x1 | AM31: =AK30/AK28*AK31 -> 4.4 | AS31: x2 | AT31: =AV33 -> 12.0 | AU31: x1 | AV31: =(AT30*AV28*AV29)/AV30 -> 11.0 | AW31: (w1 / P) * x1 | AX31: =AV30/AV28*AV31 -> 4.399 | BF31: w2 | BG31: =Isobeneficio!D10 -> 5.0 | BH31: =Isobeneficio!E10 -> 5.0 | BM31: y | BN31: =((BN32*BN36^3)+(BN33*BN36^2*BN37)+(BN34*BN36)+BN35) -> 2,461.3 | BO31: p | BP31: =((BP32*BN31)-((BP34*BN36)+(BP36*BN37))) -> 5,151.4 | CH31: y | CI31: =((CI33*CI36^2)+(CI34*CI36)+CI35) -> 26.6 | CJ31: p | CK31: =((CK32*CI31)-((CK34*CI36)+(CK36*CI37))) -> 1,203.3
B32: 1-a | C32: ='MaxBen cp'!C10 -> 0.5 | D32: w2 | E32: ='MaxBen cp'!E9 -> 50.0 | M32: 1-a | N32: ='MaxBen cp Dq1'!$C$12 -> 0.3 | O32: w2 | P32: ='MaxBen cp Dq1'!$E$11 -> 2.0 | X32: 1-a | Y32: ='MaxBen cp Dq1'!$C$12 -> 0.3 | Z32: w2 | AA32: ='MaxBen cp Dq1'!$G$11 -> 2.0 | AH32: 1-a | AI32: ='Demanda Factor Variable'!C11 -> 0.3 | AJ32: w2 | AK32: ='Demanda Factor Variable'!E10 -> 2.0 | AS32: 1-a | AT32: =AI32 -> 0.3 | AU32: w2 | AV32: ='Demanda Factor Variable'!G10 -> 2.0 | BF32: x2 | BG32: =Isobeneficio!D11 -> 60.0 | BH32: =Isobeneficio!E11 -> 60.0 | BM32: a | BN32: ='MaxBen cp polino3'!C6 -> -0.01000 | BO32: p | BP32: ='MaxBen cp polino3'!E7 -> 5.0 | CJ32: p | CK32: ='MaxBen cp polino2'!E7 -> 50.0
D33: x2 | E33: ='MaxBen cp'!C9 -> 100.0 | O33: x2 | P33: ='MaxBen cp Dq1'!$C$11 -> 12.0 | Z33: x2 | AA33: ='MaxBen cp Dq1'!$C$11 -> 12.0 | AJ33: x2 | AK33: ='Demanda Factor Variable'!C10 -> 12.0 | AU33: x2 | AV33: ='Demanda Factor Variable'!G11 -> 12.0 | BM33: b | BN33: ='MaxBen cp polino3'!C7 -> 0.600 | BO33: y | BP33: =BN31 -> 2,461.3 | CH33: a | CI33: ='MaxBen cp polino2'!C6 -> -0.150 | CJ33: y | CK33: =CI31 -> 26.6
BD34: Parámetros del Isobenefico | BM34: c | BN34: 0.00 | BO34: w1 | BP34: ='MaxBen cp polino3'!E8 -> 100.0 | CH34: b | CI34: ='MaxBen cp polino2'!C7 -> 4.000 | CJ34: w1 | CK34: ='MaxBen cp polino2'!E8 -> 10.0
BD35: y | BE35: p / p | BF35: (w2 * q2)/p | BG35: (w1 / p) * q1 | BM35: d | BN35: 0.0 | BO35: q1 | BP35: =BN36 -> 70.6 | CH35: c | CI35: ='MaxBen cp polino2'!C8 -> 0.000 | CJ35: q1 | CK35: =CI36 -> 12.7
AT36: w1 | AU36: x1 | BD36: =BG27 -> 61.3 | BE36: =BG26/BG28 -> 33.3 | BF36: =(BG31*BG32)/BG28 -> 25.0 | BG36: =(BG29*BG30)/BG28 -> 3.0 | BM36: q1 | BN36: =BN43 -> 70.6 | BO36: w2 | BP36: ='MaxBen cp polino3'!E10 -> 50.0 | CH36: q1 | CI36: =((CK34/CK32)-CI34)/(2*CI33) -> 12.7
AS37: 0.6 | AT37: =IF(AK31=AV31,AK32,($AT$39*AS37)) -> 2 | AU37: =($AI$30*$AK$28*$AK$29)/AT37 -> 10.9978371 | BD37: p | BE37: py | BF37: w2 * q2 | BG37: w1 * q1 | BM37: q2 | BN37: ='MaxBen cp polino3'!C11 -> 2.0 | BO37: q2 | BP37: =BN37 -> 2.0
AS38: 0.8 | AT38: =IF(AK31=AV31,AK32,($AT$39*AS38)) -> 2 | AU38: =($AI$30*$AK$28*$AK$29)/AT38 -> 10.9978371 | BD38: =BG26 -> 400.0 | BE38: =BG28*BG27 -> 736.0 | BF38: =BG31*BG32 -> 300.0 | BG38: =BG29*BG30 -> 36.0
AS39: 1 | AT39: =IF(AK31=AV31,AK32,AK30) -> 2.0 | AU39: 10.9978371 | BM39: Q1,1 | BN39: =((-2*BN33*BP32)+((((2*BN33*BP32)^(2))-((12*BN32*BP32)*((BN34*BP32)-BP34)))^(0.5)))/(6*BN32*BP32) -> 
AS40: 0.2 | AT40: =IF($AK$31=$AV$31,$AK$32,(($AT$44-$AT$39)*AS40+$AT$39)) -> 2 | AU40: 10.9978371 | BM40: Q1,2 | BN40: =((-2*BN33*BP32)-((((2*BN33*BP32)^(2))-((12*BN32*BP32)*((BN34*BP32)-BP34)))^(0.5)))/(6*BN32*BP32) ->  | BP40: IT | BQ40: =BN31*BP32 -> 12306.4309
AS41: 0.4 | AT41: =IF($AK$31=$AV$31,$AK$32,(($AT$44-$AT$39)*AS41+$AT$39)) -> 2 | AU41: 10.9978371 | BP41: CF | BQ41: =BN37*BP36 -> 100
AS42: 0.6 | AT42: 2 | AU42: 10.9978371 | BM42: Q1,1 | BN42: =((-2*BP32*BN33*BN37)+((((2*BP32*BN33*BN37)^(2))+((-12*BP32*BN32)*(BP32*BN34-BP34)))^(1/2)))/(6*BP32*BN32) -> 9.449495367 | BO42: máxima pérdida | BP42: CV | BQ42: =BN36*BP34 -> 7055.050463
AS43: 0.8 | AT43: 2 | AU43: 10.9978371 | BM43: Q1,2 | BN43: =((-2*BP32*BN33*BN37)-((((2*BP32*BN33*BN37)^(2))+((-12*BP32*BN32)*(BP32*BN34-BP34)))^(1/2)))/(6*BP32*BN32) -> 70.55050463 | BP43: CT | BQ43: =BQ42+BQ41 -> 7155.050463
X44: p | Y44: 40 | AS44: 1 | AT44: =IF(AK31=AV31,AK32,AV30) -> 2.0 | AU44: 10.9978371 | BP44: BeN | BQ44: =BQ40-BQ43 -> 5151.380432
X45: y | Y45: 33333.333 | AS45: 1.2 | AT45: =IF(AK31=AV31,AK32,(($AT$44-$AT$39)*AS45+$AT$39)) -> 2 | AU45: 10.9978371
X46: w1 | Y46: 6 | AS46: 1.4 | AT46: =IF(AK31=AV31,AK32,(($AT$44-$AT$39)*AS46+$AT$39)) -> 2 | AU46: 10.9978371
X47: q1 | Y47: 111111.111
X48: w2 | Y48: 2
X49: q2 | Y49: 100
X50: ben | Y50: =Y51-Y52-Y53 -> 666466.654
X51: IT | Y51: =Y45*Y44 -> 1333333.32
X52: CF | Y52: =Y48*Y49 -> 200
X53: CV | Y53: =Y47*Y46 -> 666666.666

Sheet MaxBen cp polino3 (hidden)
A1: MAXIMIZACIÓN DEL BENEFICIO
A2: CORTO PLAZO
B3: (Función polinomial de tercer grado)
B4: Función de producción | D4: Isobeneficio
B5: y | C5: ='Oculto MaxBen'!BN31 -> 2,461.3 | D5: y | E5: =C5 -> 2,461.3
B6: a(q1)3 | C6: -0.0100 | D6: p | E6: ='Oculto MaxBen'!BP31 -> 5,151.4
B7: b(q1)2 | C7: 0.600 | D7: p | E7: 5.0
B8: c(q1) | C8: 0.0 | D8: w1 | E8: 100.0
B9: d | C9: 0.0 | D9: q1 | E9: =C10 -> 70.6
B10: q1 | C10: ='Oculto MaxBen'!BN36 -> 70.6 | D10: w2 | E10: 50.0
B11: q2 | C11: 2.0 | D11: q2 | E11: =C11 -> 2.0
B16: Parámetros del isobenefico
B17: y | C17: p / p | D17: (w2 * q2)/p | E17: (w1 * q1)/p
B18: =SUM(C18:E18) -> 2,461.3 | C18: =E6/E7 -> 1,030.3 | D18: =(E10/E7)*C11 -> 20.0 | E18: =(E8/E7)*E9 -> 1,411.0
C19: p | D19: w2 * q2 | E19: w1 * q1 | H19: =E5*E7 -> 12306.4309 | I19: =C10*E8+C11*E10 -> 7155.050463
C20: =E6 -> 5,151.4 | D20: =E10*C11 -> 100.0 | E20: =C10*E8 -> 7,055.1
B22: Títulos
B23: Resultados
B24: Insertar datos
B25: Cantidad de equilibrio
B27: Títulos
